bitfinex-derivatives/quotes_SOLF0:USTF0_20260316
["timestamp","ask_amount","ask_price","bid_price","bid_amount"]
[1773627618326,32.67,91.749,91.681,29.44233533]
[1773627618717,9.808,91.743,91.681,29.44233533]
[1773627619120,9.808,91.743,91.684,29.4328693]
[1773627620226,9.808,91.743,91.659,34.26]
[1773627620227,9.808,91.743,91.687,29.23952536]
[1773627620925,9.809,91.734,91.687,29.23952536]
[1773627622018,9.808,91.744,91.687,29.23952536]
[1773627623329,9.807,91.755,91.698,29.21828961]
[1773627623525,32.67,91.8,91.698,29.21828961]
[1773627623526,8.14378568,91.79,91.698,29.21828961]
[1773627623916,9.805,91.776,91.711,29.20322225]
[1773627624120,8.14378568,91.79,91.711,29.20322225]
[1773627624725,9.804,91.777,91.714,29.21007536]
[1773627625327,9.805,91.769,91.714,29.21007536]
[1773627625725,8.14378568,91.79,91.714,29.21007536]
[1773627626025,32.67,91.789,91.714,29.21007536]
[1773627626621,9.807,91.751,91.714,29.21007536]
[1773627628627,9.806,91.761,91.715,29.19623245]
[1773627630029,9.806,91.761,91.717,29.1960868]
[1773627630425,9.805,91.77,91.717,29.1960868]
[1773627630627,9.805,91.77,91.719,29.1960868]
[1773627631030,9.805,91.77,91.721,2.62609862]
[1773627631325,10.08116899,91.807,91.719,29.1960868]
[1773627631528,8.14378568,91.81,91.721,29.19272344]
[1773627631728,8.14378568,91.75,91.668,29.13338062]
[1773627631928,9.809,91.737,91.672,29.13338062]
[1773627632731,3.42474832,91.72,91.675,29.13618114]
[1773627633627,3.42474832,91.72,91.695,2.62609862]
[1773627633830,3.42474832,91.72,91.675,29.13618114]
[1773627634731,9.81,91.727,91.675,29.13618114]
[1773627636134,9.81,91.727,91.688,2.62609862]
[1773627636332,9.81,91.727,91.675,29.13618114]
[1773627636828,9.809,91.736,91.678,29.07514731]
[1773627637033,8.15395285,91.75,91.678,29.07514731]
[1773627637429,8.15395285,91.75,91.681,29.07514731]
[1773627637930,8.15395285,91.75,91.69,29.08181095]
[1773627638530,9.808,91.746,91.69,29.08181095]
[1773627638728,9.808,91.746,91.696,29.08164007]
[1773627639135,9.808,91.746,91.7,2.62609862]
[1773627639336,9.808,91.746,91.7,29.08164007]
[1773627641533,10.08116899,91.773,91.7,29.08164007]
[1773627641534,32.67,91.784,91.7,29.08164007]
[1773627641842,32.67,91.784,91.712,29.08502916]
[1773627642138,9.806,91.765,91.712,29.08502916]
[1773627642639,9.806,91.765,91.714,2.62609862]
[1773627642935,9.806,91.765,91.715,29.11815797]
[1773627643333,9.805,91.776,91.717,29.11815797]
[1773627643730,32.67,91.789,91.722,29.12482194]
[1773627644140,9.805,91.768,91.722,29.12482194]
[1773627646742,9.805,91.768,91.734,2.62609862]
[1773627646942,9.805,91.768,91.722,29.12482194]
[1773627648343,9.805,91.768,91.735,2.62609862]
[1773627648643,9.805,91.768,91.722,29.12482194]
[1773627648942,9.805,91.768,91.731,2.62609862]
[1773627649242,9.805,91.768,91.722,29.12482194]
[1773627650841,9.805,91.768,91.735,2.62609862]
[1773627651145,9.805,91.768,91.722,29.12482194]
[1773627651443,9.805,91.768,91.738,2.62609862]
[1773627651645,9.805,91.768,91.722,29.12482194]
[1773627651845,9.805,91.768,91.74,2.62609862]
[1773627652044,9.805,91.768,91.722,29.12482194]
[1773627652843,9.805,91.768,91.742,2.62609862]
[1773627653041,9.805,91.768,91.722,29.12482194]
[1773627653346,9.804,91.778,91.741,2.62609862]
[1773627653644,9.804,91.778,91.737,29.12086188]
[1773627653844,9.804,91.778,91.739,2.62609862]
[1773627654045,9.804,91.778,91.737,29.12086188]
[1773627655335,9.804,91.778,91.751,2.62609862]
[1773627655535,9.803,91.786,91.737,29.12086188]
[1773627655740,34.26,91.827,91.737,29.12086188]
[1773627655936,34.26,91.827,91.742,29.12140308]
[1773627656343,34.26,91.827,91.758,2.62609862]
[1773627656538,34.26,91.827,91.733,34.26]
[1773627656539,9.801,91.805,91.759,29.12140308]
[1773627656739,3.41875606,91.8,91.759,29.12140308]
[1773627658452,3.41875606,91.78,91.739,29.10691606]
[1773627658646,3.41875606,91.77,91.739,29.10691606]
[1773627660252,3.41875606,91.77,91.72,29.10817199]
[1773627660548,3.41875606,91.76,91.72,29.10817199]
[1773627661451,3.41875606,91.75,91.72,29.10817199]
[1773627661947,3.41875606,91.76,91.72,29.10817199]
[1773627662148,9.805,91.768,91.72,29.10817199]
[1773627663253,3.41875606,91.77,91.72,29.10817199]
[1773627664053,3.41875606,91.76,91.72,29.10817199]
[1773627666057,3.41875606,91.77,91.72,29.10817199]
[1773627666254,3.41875606,91.78,91.724,29.10752958]
[1773627666558,3.41875606,91.77,91.724,29.10752958]
[1773627666961,3.41875606,91.76,91.724,29.10752958]
[1773627668559,3.41875606,91.76,91.711,29.11410104]
[1773627669558,9.806,91.759,91.711,29.11410104]
[1773627670560,3.41875606,91.76,91.714,29.10535883]
[1773627672660,9.805,91.768,91.714,29.10535883]
[1773627674366,3.41875606,91.77,91.714,29.10535883]
[1773627675566,3.41875606,91.76,91.714,29.10535883]
[1773627680867,3.41875606,91.73,91.698,29.09472929]
[1773627681278,3.41875606,91.72,91.685,63.37472929]
[1773627681474,3.41875606,91.72,91.686,29.09472929]
[1773627682977,3.41875606,91.73,91.686,29.09472929]
[1773627683372,9.808,91.743,91.686,29.09472929]
[1773627683677,3.41875606,91.73,91.686,29.09472929]
[1773627684774,3.41875606,91.74,91.686,29.09472929]
[1773627685571,3.41875606,91.74,91.688,29.03952984]
[1773627685774,3.41875606,91.73,91.688,29.03952984]
[1773627689474,3.41875606,91.74,91.688,29.03952984]
[1773627689973,3.41875606,91.74,91.69,29.04164559]
[1773627691378,32.67,91.764,91.69,29.04164559]
[1773627691379,3.41875606,91.73,91.69,29.04164559]
[1773627694480,32.67,91.764,91.69,29.04164559]
[1773627694481,3.41875606,91.74,91.69,29.04164559]
[1773627698080,3.41875606,91.73,91.69,29.04164559]
[1773627700080,3.41875606,91.74,91.69,29.04164559]
[1773627701382,3.41875606,91.74,91.692,29.00373724]
[1773627703385,3.41875606,91.73,91.692,29.00373724]
[1773627704791,3.41875606,91.72,91.689,34.28]
[1773627704984,3.41875606,91.71,91.673,29.00426405]
[1773627705185,3.41875606,91.69,91.673,29.00426405]
[1773627705390,3.41875606,91.69,91.654,29.00426405]
[1773627706885,2.85601226,91.69,91.654,29.00426405]
[1773627707692,9.812,91.71,91.654,29.00426405]
[1773627707896,2.85601226,91.7,91.654,29.00426405]
[1773627708191,2.85601226,91.69,91.654,29.00426405]
[1773627708995,12.66901226,91.7,91.654,29.00426405]
[1773627709294,2.85601226,91.7,91.654,29.00426405]
[1773627709886,12.66901226,91.7,91.654,29.00426405]
[1773627710386,2.85601226,91.7,91.654,29.00426405]
[1773627712500,2.85601226,91.69,91.654,29.00426405]
[1773627713899,2.85601226,91.7,91.654,29.00426405]
[1773627714300,2.85601226,91.71,91.654,29.00426405]
[1773627715500,2.85601226,91.71,91.656,9.817]
[1773627715696,2.85601226,91.71,91.657,29.11659313]
[1773627716303,2.85601226,91.71,91.661,29.11659313]
[1773627717598,2.85601226,91.7,91.661,29.11659313]
[1773627719194,2.85601226,91.69,91.661,29.11659313]
[1773627719599,2.85601226,91.7,91.661,29.11659313]
[1773627721707,2.85601226,91.71,91.664,29.11732522]
[1773627722310,12.66801226,91.71,91.664,29.11732522]
[1773627722506,2.85601226,91.68,91.651,29.11732522]
[1773627723908,2.85601226,91.7,91.651,29.11732522]
[1773627724108,9.811,91.716,91.654,29.116775]
[1773627724315,2.85601226,91.7,91.654,29.116775]
[1773627725516,2.85601226,91.7,91.656,29.29508366]
[1773627726320,2.85601226,91.7,91.658,29.27501144]
[1773627726520,9.811,91.716,91.658,29.27501144]
[1773627726819,2.85601226,91.72,91.658,29.27501144]
[1773627727018,2.85601226,91.71,91.658,29.27501144]
[1773627727717,2.85601226,91.71,91.66,29.27446683]
[1773627728621,2.85601226,91.71,91.663,29.27727161]
[1773627729718,2.85601226,91.72,91.663,29.27727161]
[1773627730120,2.85601226,91.72,91.667,29.27366149]
[1773627730819,9.811,91.719,91.667,29.27366149]
[1773627731019,2.85601226,91.71,91.667,29.27366149]
[1773627732218,2.85601226,91.7,91.667,29.27366149]
[1773627732614,9.812,91.711,91.65,29.27635233]
[1773627732615,2.85601226,91.69,91.65,29.27635233]
[1773627732818,2.85601226,91.68,91.65,29.27635233]
[1773627735424,2.85601226,91.68,91.61,16.36976226]
[1773627735425,2.85601226,91.67,91.626,29.27633329]
[1773627735623,2.85601226,91.66,91.626,29.27633329]
[1773627738522,2.85601226,91.67,91.626,29.27633329]
[1773627745034,2.85601226,91.66,91.626,29.27633329]
[1773627745234,2.85601226,91.65,91.626,29.27633329]
[1773627745439,66.97,91.69,91.626,29.27633329]
[1773627745636,2.85601226,91.66,91.626,29.27633329]
[1773627748138,2.85601226,91.65,91.626,29.27633329]
[1773627749044,2.85601226,91.65,91.612,29.32490908]
[1773627749239,2.85601226,91.64,91.612,29.32490908]
[1773627750648,2.85601226,91.65,91.612,29.32490908]
[1773627750945,9.817,91.66,91.612,29.32490908]
[1773627750946,2.85601226,91.66,91.612,29.32490908]
[1773627751443,2.85601226,91.65,91.612,29.32490908]
[1773627752744,2.85601226,91.64,91.612,29.32490908]
[1773627752945,2.85601226,91.64,91.598,29.36260731]
[1773627754144,2.85601226,91.65,91.6,29.37401801]
[1773627754742,2.85601226,91.65,91.602,9.823]
[1773627754942,2.85601226,91.65,91.603,29.37928491]
[1773627762954,2.85601226,91.65,91.606,29.39248861]
[1773627764759,2.85601226,91.65,91.611,29.38988486]
[1773627765757,2.85601226,91.64,91.611,29.38988486]
[1773627766257,9.817,91.656,91.611,29.38988486]
[1773627766258,2.85601226,91.65,91.611,29.38988486]
[1773627768862,2.85877908,91.65,91.611,29.38988486]
[1773627772356,2.85877908,91.64,91.611,29.38988486]
[1773627773961,2.85877908,91.65,91.611,29.38988486]
[1773627774556,2.85877908,91.64,91.611,29.38988486]
[1773627775165,2.85877908,91.64,91.592,29.40319661]
[1773627775964,2.85877908,91.64,91.594,29.40327954]
[1773627776465,2.85877908,91.64,91.596,29.40327954]
[1773627777262,2.85877908,91.64,91.598,29.44254371]
[1773627779173,2.85877908,91.63,91.598,29.44254371]
[1773627780169,9.818,91.649,91.598,29.44254371]
[1773627780374,2.85877908,91.64,91.598,29.44254371]
[1773627780877,2.85877908,91.62,91.598,29.44254371]
[1773627781572,2.85877908,91.63,91.598,29.44254371]
[1773627782868,2.85877908,91.62,91.598,29.44254371]
[1773627787379,2.85877908,91.63,91.598,29.44254371]
[1773627787679,2.85877908,91.62,91.598,29.44254371]
[1773627788684,2.85877908,91.61,91.579,29.44323188]
[1773627789084,2.85877908,91.6,91.579,29.44323188]
[1773627789582,2.85877908,91.61,91.579,29.44323188]
[1773627790583,2.85877908,91.62,91.579,29.44323188]
[1773627790783,2.85877908,91.61,91.579,29.44323188]
[1773627796189,10.15544159,91.654,91.58,29.47847198]
[1773627796389,2.85877908,91.64,91.58,29.47847198]
[1773627796789,2.85877908,91.64,91.587,9.825]
[1773627797088,2.85877908,91.62,91.588,29.47923093]
[1773627798792,2.85877908,91.61,91.588,29.47923093]
[1773627799091,32.67,91.643,91.588,29.47923093]
[1773627799292,34.3,91.644,91.588,29.47923093]
[1773627799293,2.85877908,91.63,91.588,29.47923093]
[1773627801186,2.85877908,91.62,91.588,29.47923093]
[1773627803991,9.819,91.639,91.588,29.47923093]
[1773627804193,2.85877908,91.63,91.588,29.47923093]
[1773627806392,2.85877908,91.63,91.593,29.49990129]
[1773627806588,2.85877908,91.62,91.593,29.49990129]
[1773627808492,2.85877908,91.6,91.53,2.85877908]
[1773627808788,2.85877908,91.61,91.557,9.828]
[1773627808991,2.85877908,91.62,91.55,2.85877908]
[1773627810495,2.85877908,91.62,91.566,21.07808764]
[1773627812000,2.85877908,91.63,91.571,20.83220503]
[1773627813490,2.85877908,91.63,91.578,9.826]
[1773627813795,2.85877908,91.63,91.579,20.83756058]
[1773627814794,2.85877908,91.63,91.582,9.825]
[1773627815100,2.85877908,91.63,91.583,20.83442237]
[1773627816497,2.85877908,91.62,91.583,20.83442237]
[1773627819601,2.85877908,91.6,91.566,20.83827175]
[1773627821101,2.85877908,91.61,91.568,20.84713797]
[1773627822595,2.85877908,91.61,91.57,20.8471787]
[1773627823197,2.85877908,91.6,91.57,20.8471787]
[1773627824594,2.85877908,91.61,91.57,20.8471787]
[1773627826203,2.85877908,91.62,91.57,20.8471787]
[1773627827604,2.85877908,91.62,91.572,20.84687633]
[1773627828107,13.54203793,91.652,91.572,20.84687633]
[1773627828108,2.85877908,91.63,91.572,20.84687633]
[1773627828502,2.85877908,91.62,91.572,20.84687633]
[1773627828707,2.85877908,91.62,91.583,20.8318344]
[1773627828896,2.86013999,91.62,91.583,20.8318344]
[1773627829702,2.86013999,91.63,91.583,20.8318344]
[1773627832103,2.86013999,91.63,91.583,31.04014913]
[1773627832307,2.86013999,91.63,91.584,20.85143837]
[1773627832908,2.86013999,91.63,91.587,9.825]
[1773627833110,2.86013999,91.63,91.588,20.85125874]
[1773627835010,2.86013999,91.63,91.591,20.85343875]
[1773627835709,2.86013999,91.61,91.578,10.20831473]
[1773627836311,2.86013999,91.61,91.579,20.85336865]
[1773627838905,9.82,91.628,91.579,20.85336865]
[1773627839107,2.86013999,91.61,91.579,20.85336865]
[1773627846817,2.86013999,91.62,91.579,20.85336865]
[1773627847012,2.86013999,91.62,91.58,20.87339953]
[1773627848518,2.86013999,91.63,91.58,20.87339953]
[1773627848920,2.86013999,91.62,91.58,20.87339953]
[1773627849719,34.32,91.634,91.58,20.87339953]
[1773627849911,2.86013999,91.6,91.571,10.20831473]
[1773627850115,2.86013999,91.6,91.571,20.87198788]
[1773627856325,9.821,91.62,91.571,20.87198788]
[1773627856524,12.68113999,91.62,91.572,19.4480296]
[1773627857020,34.32,91.634,91.572,19.4480296]
[1773627857229,2.86013999,91.63,91.593,18.02757847]
[1773627858525,2.86013999,91.64,91.596,18.03676823]
[1773627859327,2.86013999,91.64,91.57,2.86013999]
[1773627859328,2.86013999,91.65,91.599,18.06646883]
[1773627860024,9.817,91.661,91.599,18.06646883]
[1773627860025,2.86013999,91.64,91.599,18.06646883]
[1773627860530,2.86013999,91.64,91.602,18.06676368]
[1773627861631,2.86013999,91.64,91.604,18.07483533]
[1773627865729,34.32,91.666,91.592,18.08011979]
[1773627865730,2.86013999,91.62,91.592,18.08011979]
[1773627870237,2.86013999,91.61,91.58,18.18202129]
[1773627871241,2.86013999,91.62,91.58,18.18202129]
[1773627871736,13.54203793,91.664,91.565,23.34075]
[1773627871737,2.86013999,91.63,91.589,10.20831473]
[1773627871944,2.86013999,91.63,91.59,18.19633882]
[1773627872335,2.86013999,91.65,91.595,10.20831473]
[1773627872535,2.86013999,91.62,91.596,18.19633882]
[1773627872842,2.86013999,91.61,91.584,18.19979255]
[1773627873036,2.86013999,91.62,91.584,18.19979255]
[1773627873334,2.86013999,91.61,91.584,18.19979255]
[1773627873542,2.86013999,91.62,91.584,18.19979255]
[1773627875544,9.821,91.618,91.584,18.19979255]
[1773627875947,2.86013999,91.62,91.584,18.19979255]
[1773627879547,2.86013999,91.6,91.578,18.16780309]
[1773627879745,2.86013999,91.6,91.559,34.32]
[1773627879746,2.86013999,91.6,91.569,10.20831473]
[1773627879945,2.86013999,91.6,91.569,18.14608838]
[1773627880146,2.86013999,91.61,91.569,18.14608838]
[1773627881347,2.86013999,91.59,91.564,10.20831473]
[1773627881543,2.86013999,91.59,91.56,18.1500598]
[1773627883545,12.68413999,91.59,91.56,18.1500598]
[1773627884855,32.76,91.623,91.56,18.1500598]
[1773627885151,2.86013999,91.6,91.56,18.1500598]
[1773627888458,2.86013999,91.59,91.56,18.1500598]
[1773627889155,2.86013999,91.59,91.546,18.22896767]
[1773627889460,32.76,91.628,91.546,18.22896767]
[1773627889461,2.86013999,91.58,91.546,18.22896767]
[1773627890559,2.86013999,91.58,91.534,10.20831473]
[1773627890560,2.86013999,91.58,91.548,29.98383609]
[1773627890862,2.86271157,91.58,91.548,29.98383609]
[1773627892258,2.86271157,91.58,91.549,18.39219198]
[1773627895459,9.826,91.579,91.548,11.74662032]
[1773627895663,2.86271157,91.58,91.549,18.38436547]
[1773627898965,32.76,91.605,91.549,18.38436547]
[1773627899168,2.86271157,91.59,91.549,18.38436547]
[1773627899366,2.86271157,91.6,91.549,18.38436547]
[1773627899569,34.34,91.609,91.552,18.50063869]
[1773627899766,2.86271157,91.61,91.552,18.50063869]
[1773627899969,2.86271157,91.6,91.552,18.50063869]
[1773627901571,2.86271157,91.59,91.552,18.50063869]
[1773627906068,2.86271157,91.6,91.552,18.50063869]
[1773627912075,2.86271157,91.59,91.552,18.50063869]
[1773627915268,2.86271157,91.58,91.552,18.50063869]
[1773627915472,32.76,91.613,91.548,11.74662032]
[1773627915473,2.86271157,91.57,91.548,11.74662032]
[1773627915878,2.86271157,91.56,91.548,0.00062032]
[1773627916077,2.86271157,91.56,91.511,10.18240828]
[1773627917285,2.86271157,91.56,91.512,10.18240828]
[1773627917580,2.86271157,91.56,91.514,9.10403949]
[1773627920175,2.86271157,91.55,91.514,9.10403949]
[1773627920685,12.69071157,91.56,91.514,9.10403949]
[1773627920874,2.86271157,91.56,91.514,9.10403949]
[1773627922684,2.86271157,91.55,91.514,9.10403949]
[1773627923379,2.86271157,91.56,91.514,9.10403949]
[1773627924186,2.86271157,91.56,91.515,9.832]
[1773627924386,2.86271157,91.56,91.516,7.56875284]
[1773627925589,2.86271157,91.56,91.518,7.56874559]
[1773627929784,2.86271157,91.55,91.518,7.56874559]
[1773627933095,9.829,91.549,91.518,7.56874559]
[1773627933292,10.92,91.593,91.495,7.54917752]
[1773627933293,2.86271157,91.53,91.495,7.54917752]
[1773627935194,32.76,91.561,91.495,7.54917752]
[1773627935195,2.86271157,91.55,91.495,7.54917752]
[1773627935395,2.86271157,91.54,91.495,7.54917752]
[1773627936592,2.86271157,91.54,91.497,7.47632981]
[1773627939803,10.1539221,91.592,91.47,1.90103164]
[1773627939804,2.86271157,91.56,91.501,7.48816961]
[1773627940202,9.827,91.565,91.501,7.48816961]
[1773627940602,9.827,91.565,91.511,7.48936652]
[1773627940900,2.86271157,91.56,91.511,7.48936652]
[1773627942704,2.86271157,91.56,91.514,7.49413133]
[1773627943595,32.76,91.587,91.498,10.18240828]
[1773627943801,32.76,91.587,91.389,10.92]
[1773627943802,2.86271157,91.53,91.49,7.37745028]
[1773627944096,2.86271157,91.54,91.49,7.37745028]
[1773627949911,2.86271157,91.53,91.49,7.37745028]
[1773627951012,2.86271157,91.52,91.49,7.37745028]
[1773627951216,2.86271157,91.51,91.477,7.30456182]
[1773627951416,2.86271157,91.5,91.463,7.30456182]
[1773627952113,19.655,91.563,91.463,7.30456182]
[1773627952114,2.86271157,91.49,91.463,7.30456182]
[1773627952915,32.76,91.521,91.463,7.30456182]
[1773627953113,2.8681743,91.5,91.463,7.30456182]
[1773627953515,2.8681743,91.49,91.463,7.30456182]
[1773627953712,2.8681743,91.48,91.438,7.16929916]
[1773627957421,2.8681743,91.49,91.438,7.16929916]
[1773627957726,2.8681743,91.51,91.451,7.1676631]
[1773627958614,2.8681743,91.5,91.451,7.1676631]
[1773627959315,2.8681743,91.51,91.457,7.20537563]
[1773627959517,2.8681743,91.52,91.457,7.20537563]
[1773627959924,32.76,91.546,91.457,7.20537563]
[1773627959925,2.8681743,91.51,91.457,7.20537563]
[1773627960725,2.8681743,91.52,91.461,7.21645712]
[1773627961519,2.8681743,91.51,91.465,7.22563603]
[1773627962926,32.76,91.527,91.438,7.22655689]
[1773627963125,2.8681743,91.47,91.438,7.22655689]
[1773627965627,2.8681743,91.45,91.411,7.16651922]
[1773627966420,2.8681743,91.44,91.411,7.16651922]
[1773627966625,2.8681743,91.44,91.396,7.16628913]
[1773627967828,2.8681743,91.41,91.36,7.05485939]
[1773627968029,2.8681743,91.38,91.331,9.852]
[1773627968229,2.8681743,91.38,91.31,2.8681743]
[1773627968230,4.80970949,91.408,91.33,2.8681743]
[1773627968432,2.8681743,91.39,91.33,2.8681743]
[1773627968731,2.8681743,91.39,91.321,1.90387614]
[1773627968930,2.8681743,91.39,91.32,2.8681743]
[1773627969631,2.8681743,91.4,91.342,9.851]
[1773627969933,2.8681743,91.4,91.343,5.40177142]
[1773627970429,2.8681743,91.39,91.343,5.40177142]
[1773627970625,4.80970949,91.408,91.343,5.40177142]
[1773627970626,2.8681743,91.38,91.343,5.40177142]
[1773627971421,4.80970949,91.408,91.343,5.40177142]
[1773627971631,2.8681743,91.4,91.343,5.40177142]
[1773627972025,2.8681743,91.38,91.343,5.40177142]
[1773627973022,2.8681743,91.39,91.343,5.40177142]
[1773627974534,2.8681743,91.4,91.343,5.40177142]
[1773627977639,2.8681743,91.39,91.343,5.40177142]
[1773627977835,2.8681743,91.39,91.372,0.02127316]
[1773627978036,2.8681743,91.4,91.372,0.02127316]
[1773627980243,2.8681743,91.41,91.372,5.42304458]
[1773627980544,2.8681743,91.4,91.372,5.42304458]
[1773627980745,2.8681743,91.4,91.372,0.02127316]
[1773627982339,7.38708305,91.4,91.372,0.02127316]
[1773627982536,2.8681743,91.39,91.372,0.02127316]
[1773627982839,2.8681743,91.4,91.372,0.02127316]
[1773627983242,7.39662314,91.39,91.349,5.98313956]
[1773627983438,2.8681743,91.38,91.349,5.98313956]
[1773627983842,7.39662314,91.39,91.349,5.98313956]
[1773627985345,2.8681743,91.38,91.349,5.98313956]
[1773627986336,5.72511309,91.369,91.261,32.76]
[1773627986536,5.72511309,91.369,91.235,20.08392115]
[1773627986537,2.8681743,91.32,91.25,2.8681743]
[1773627986740,2.8681743,91.31,91.263,9.86]
[1773627987243,2.8681743,91.32,91.263,9.86]
[1773627987443,2.8681743,91.31,91.251,9.861]
[1773627987845,2.8681743,91.32,91.251,9.861]
[1773627988042,2.8681743,91.32,91.261,9.86]
[1773627988239,2.8681743,91.32,91.262,5.98313956]
[1773627988543,2.8681743,91.31,91.262,5.98313956]
[1773627990048,2.8681743,91.31,91.264,5.98313956]
[1773627990349,2.8681743,91.32,91.264,5.98313956]
[1773627990547,5.72511309,91.337,91.272,5.98313956]
[1773627990754,2.8681743,91.33,91.272,5.98313956]
[1773627991047,2.8681743,91.35,91.293,5.98313956]
[1773627991249,2.8681743,91.32,91.263,5.98313956]
[1773627991455,2.8681743,91.33,91.263,5.98313956]
[1773627991652,2.8681743,91.34,91.28,2.8681743]
[1773627991953,2.8681743,91.34,91.281,5.98313956]
[1773627992851,9.851,91.346,91.281,5.98313956]
[1773627994151,5.72511309,91.352,91.285,5.98313956]
[1773627994652,5.72511309,91.35,91.29,5.98313956]
[1773627995756,5.72511309,91.348,91.29,5.98313956]
[1773627999759,5.72511309,91.348,91.292,5.98313956]
[1773628000653,5.72511309,91.348,91.295,5.98313956]
[1773628000857,5.72511309,91.363,91.295,5.98313956]
[1773628002355,5.72511309,91.363,91.306,9.855]
[1773628002561,5.72511309,91.383,91.307,5.98313956]
[1773628003262,5.72511309,91.373,91.307,5.98313956]
[1773628004552,5.72511309,91.364,91.292,5.98313956]
[1773628005357,5.72511309,91.345,91.292,5.98313956]
[1773628006151,5.72511309,91.345,91.283,9.857]
[1773628006358,5.72511309,91.337,91.275,5.98313956]
[1773628007559,9.852,91.336,91.282,5.98313956]
[1773628007862,5.72511309,91.337,91.282,5.98313956]
[1773628008558,5.72511309,91.329,91.25,5.98313956]
[1773628009163,5.72511309,91.329,91.263,5.98313956]
[1773628010661,5.72511309,91.326,91.265,5.98313956]
[1773628011657,5.72511309,91.323,91.265,5.98313956]
[1773628013064,5.72511309,91.323,91.268,5.79180356]
[1773628014267,9.852,91.334,91.268,5.79180356]
[1773628014566,9.853,91.329,91.27,9.859]
[1773628014866,5.96964534,91.328,91.271,5.79089811]
[1773628015066,5.96964534,91.326,91.271,5.79089811]
[1773628015869,5.96964534,91.326,91.275,5.79089811]
[1773628016261,5.96964534,91.351,91.275,5.79089811]
[1773628016466,5.96964534,91.351,91.294,5.79089811]
[1773628017071,9.85,91.349,91.296,5.79089811]
[1773628020571,15.81964534,91.349,91.296,5.79089811]
[1773628021275,5.96964534,91.345,91.285,9.857]
[1773628021474,5.96964534,91.345,91.286,5.79089811]
[1773628022270,5.96964534,91.342,91.289,5.79089811]
[1773628022664,5.96964534,91.342,91.292,5.79089811]
[1773628023675,5.96964534,91.342,91.294,5.79089811]
[1773628023878,9.85,91.353,91.294,5.79089811]
[1773628024375,5.96964534,91.352,91.294,5.79089811]
[1773628025167,9.85,91.351,91.294,15.64689811]
[1773628025472,5.96964534,91.35,91.295,5.79089811]
[1773628026071,5.96964534,91.35,91.285,10.18006671]
[1773628026271,8.22629358,91.37,91.232,44.98146259]
[1773628026272,8.22629358,91.3,91.232,44.98146259]
[1773628026469,40.98629358,91.3,91.232,44.98146259]
[1773628026670,40.98629358,91.3,91.197,44.98146259]
[1773628027073,8.22629358,91.26,91.197,44.98146259]
[1773628027268,34.36,91.277,91.197,44.98146259]
[1773628027574,8.22629358,91.28,91.203,45.02649541]
[1773628028267,9.859,91.269,91.203,45.02649541]
[1773628029377,9.859,91.269,91.203,40.58649541]
[1773628030480,9.859,91.269,91.204,9.866]
[1773628031176,8.22629358,91.28,91.204,9.866]
[1773628031481,8.22629358,91.28,91.212,42.67332678]
[1773628032382,34.38,91.288,91.214,42.6774818]
[1773628032578,9.856,91.295,91.214,42.6774818]
[1773628033273,8.22629358,91.3,91.229,42.67588398]
[1773628033473,9.855,91.31,91.229,42.67588398]
[1773628033786,9.855,91.31,91.232,42.68355062]
[1773628033982,34.38,91.333,91.232,42.68355062]
[1773628034486,8.22629358,91.34,91.232,42.68355062]
[1773628034785,9.853,91.328,91.257,42.68355062]
[1773628035285,9.854,91.319,91.262,42.69791832]
[1773628036589,9.853,91.329,91.262,42.69791832]
[1773628037182,9.854,91.317,91.262,42.69791832]
[1773628037884,9.855,91.307,91.262,42.69791832]
[1773628038188,9.855,91.307,91.242,42.60988932]
[1773628038785,9.855,91.307,91.246,42.60621869]
[1773628038978,9.854,91.317,91.246,42.60621869]
[1773628040187,32.76,91.325,91.246,42.60621869]
[1773628040188,9.855,91.306,91.246,42.60621869]
[1773628042394,9.854,91.318,91.246,52.46721869]
[1773628042795,9.854,91.318,91.246,42.60621869]
[1773628043690,9.853,91.328,91.256,42.58801623]
[1773628044593,9.853,91.328,91.26,42.58340743]
[1773628045592,9.854,91.319,91.26,42.58340743]
[1773628047592,9.854,91.319,91.264,42.57763452]
[1773628048296,9.853,91.328,91.267,42.64565813]
[1773628048697,32.76,91.329,91.267,42.64565813]
[1773628049296,42.613,91.329,91.267,52.50465813]
[1773628049797,32.76,91.339,91.267,42.64565813]
[1773628049998,9.854,91.32,91.267,42.64565813]
[1773628051297,9.854,91.312,91.246,42.53239606]
[1773628051503,32.76,91.299,91.224,42.53239606]
[1773628052201,9.857,91.287,91.224,42.53239606]
[1773628052800,9.857,91.287,91.196,34.38]
[1773628052801,9.856,91.297,91.234,42.55817788]
[1773628053603,9.856,91.297,91.192,1.90684409]